fUST/lending_fUST_20250501
["ID","MTS","AMOUNT","RATE_DAILY","PERIOD"]
[359453902,1746029437234,-400.0,0.00038356,12]
[359453903,1746029437244,-284.29,0.00038356,12]
[359453904,1746029437253,-400.0,0.00038356,12]
[359453905,1746029437263,-400.0,0.00038356,12]
[359453906,1746029437273,-400.0,0.00038356,12]
[359453907,1746029437284,-400.0,0.00038356,12]
[359453908,1746029437294,-400.0,0.00038356,12]
[359453909,1746029437303,-400.0,0.00038356,12]
[359453910,1746029437313,-400.0,0.00038356,12]
[359453911,1746029437323,-400.0,0.00038356,12]
[359453912,1746029437333,-228.63,0.00038356,12]
[359453913,1746029437342,-400.0,0.00038356,12]
[359453914,1746029437353,-400.0,0.00038356,12]
[359453915,1746029437363,-400.0,0.00038356,12]
[359453916,1746029437373,-400.0,0.00038356,12]
[359453917,1746029437384,-428.45,0.00038356,12]
[359453918,1746029437394,-428.45,0.00038356,12]
[359453919,1746029437404,-428.45,0.00038356,12]
[359453920,1746029437414,-428.45,0.00038356,12]
[359453921,1746029437423,-428.45,0.00038356,12]
[359453922,1746029437433,-428.45,0.00038356,12]
[359453923,1746029437443,-428.45,0.00038356,12]
[359453924,1746029437453,-428.45,0.00038356,12]
[359453925,1746029437463,-400.0,0.00038356,12]
[359453926,1746029437473,-428.45,0.00038356,12]
[359453927,1746029437484,-529.06964057,0.00038356,12]
[359453928,1746029437494,-428.45,0.00038356,12]
[359453929,1746029437504,-404.29885044,0.00038356,12]
[359453930,1746029437514,-400.0,0.00038356,12]
[359453931,1746029437525,-400.0,0.00038356,12]
[359453932,1746029437535,-400.0,0.00038356,12]
[359453933,1746029437545,-400.0,0.00038356,12]
[359453934,1746029437555,-400.0,0.00038356,12]
[359453935,1746029437567,-400.0,0.00038356,12]
[359453936,1746029437578,-400.0,0.00038356,12]
[359453937,1746029437587,-400.0,0.00038356,12]
[359453938,1746029437597,-400.0,0.00038356,12]
[359453939,1746029437606,-400.0,0.00038356,12]
[359453940,1746029437616,-400.0,0.00038356,12]
[359453941,1746029437625,-400.0,0.00038356,12]
[359453942,1746029437635,-400.0,0.00038356,12]
[359453943,1746029437646,-400.0,0.00038356,12]
[359453944,1746029437655,-400.0,0.00038356,12]
[359453945,1746029437666,-400.0,0.00038356,12]
[359453946,1746029437676,-400.0,0.00038356,12]
[359453947,1746029437688,-400.0,0.00038356,12]
[359453948,1746029437698,-400.0,0.00038356,12]
[359453949,1746029437708,-400.0,0.00038356,12]
[359453951,1746029437718,-400.0,0.00038356,12]
[359453953,1746029437728,-400.0,0.00038356,12]
[359453955,1746029437738,-400.0,0.00038356,12]
[359453957,1746029437747,-400.0,0.00038356,12]
[359453958,1746029437759,-400.0,0.00038356,12]
[359453959,1746029437768,-400.0,0.00038356,12]
[359453960,1746029437778,-400.0,0.00038356,12]
[359453961,1746029437787,-400.0,0.00038356,12]
[359453962,1746029437797,-400.0,0.00038356,12]
[359453963,1746029437809,-400.0,0.00038356,12]
[359453964,1746029437818,-400.0,0.00038356,12]
[359453965,1746029437828,-400.0,0.00038356,12]
[359453966,1746029437838,-400.0,0.00038356,12]
[359453967,1746029437847,-400.0,0.00038356,12]
[359453968,1746029437857,-494.69,0.00038356,12]
[359453969,1746029437867,-400.0,0.00038356,12]
[359453971,1746029437877,-400.0,0.00038356,12]
[359453973,1746029437887,-400.0,0.00038356,12]
[359453974,1746029437896,-384.31,0.00038356,12]
[359453975,1746029437906,-400.0,0.00038356,12]
[359453976,1746029437918,-400.0,0.00038356,12]
[359453977,1746029437928,-400.0,0.00038356,12]
[359453978,1746029437938,-400.0,0.00038356,12]
[359453979,1746029437948,-400.0,0.00038356,12]
[359453980,1746029437958,-169.02,0.00038356,12]
[359453981,1746029437967,-400.0,0.00038356,12]
[359453982,1746029437977,-400.0,0.00038356,12]
[359453983,1746029437987,-400.0,0.00038356,12]
[359453984,1746029437996,-156.70472299,0.00038356,12]
[359453985,1746029438007,-400.0,0.00038356,12]
[359453986,1746029438018,-400.0,0.00038356,12]
[359453987,1746029438027,-400.0,0.00038356,12]
[359453988,1746029438038,-400.0,0.00038356,12]
[359453989,1746029438048,-312.75,0.00038356,12]
[359453990,1746029438058,-516.62936842,0.00038356,12]
[359453991,1746029438069,-400.0,0.00038356,12]
[359453992,1746029438078,-400.0,0.00038356,12]
[359453993,1746029438089,-400.0,0.00038356,12]
[359453994,1746029438099,-400.0,0.00038356,12]
[359453995,1746029438109,-501.72282875,0.00038356,12]
[359453996,1746029438119,-400.0,0.00038356,12]
[359453997,1746029438128,-400.0,0.00038356,12]
[359453998,1746029438137,-400.0,0.00038356,12]
[359453999,1746029438147,-400.0,0.00038356,12]
[359454000,1746029438157,-400.0,0.00038356,12]
[359454001,1746029438167,-400.0,0.00038356,12]
[359454002,1746029438176,-400.0,0.00038356,12]
[359454003,1746029438185,-400.0,0.00038356,12]
[359454004,1746029438194,-403.04,0.00038356,12]
[359454005,1746029438203,-503.71,0.00038356,12]
[359454006,1746029438212,-485.96,0.00038356,12]
[359454007,1746029438221,-400.0,0.00038356,12]
[359454008,1746029438230,-400.0,0.00038356,12]
[359454009,1746029438239,-400.0,0.00038356,12]
[359454010,1746029438248,-213.86560846,0.00038356,12]
[359454011,1746029438349,-160.03439154,0.00038356,12]
[359454012,1746029438359,-400.0,0.00038356,12]
[359454013,1746029438369,-400.0,0.00038356,12]
[359454014,1746029438378,-202.91,0.00038356,12]
[359454015,1746029438388,-400.0,0.00038356,12]
[359454016,1746029438398,-400.0,0.00038356,12]
[359454017,1746029438408,-506.12,0.00038356,12]
[359454018,1746029438418,-400.0,0.00038356,12]
[359454019,1746029438428,-400.0,0.00038356,12]
[359454020,1746029438438,-400.0,0.00038356,12]
[359454021,1746029438448,-400.0,0.00038356,12]
[359454022,1746029438458,-400.0,0.00038356,12]
[359454023,1746029438467,-400.0,0.00038356,12]
[359454024,1746029438477,-400.0,0.00038356,12]
[359454025,1746029438487,-513.48,0.00038356,12]
[359454026,1746029438497,-400.0,0.00038356,12]
[359454027,1746029438507,-400.0,0.00038356,12]
[359454028,1746029438517,-400.0,0.00038356,12]
[359454029,1746029438527,-506.58859987,0.00038356,12]
[359454030,1746029438536,-514.09,0.00038356,12]
[359454031,1746029438546,-400.0,0.00038356,12]
[359454032,1746029438555,-494.47,0.00038356,12]
[359454033,1746029438564,-400.0,0.00038356,12]
[359454034,1746029438574,-400.0,0.00038356,12]
[359454035,1746029438584,-400.0,0.00038356,12]
[359454036,1746029438593,-400.0,0.00038356,12]
[359454037,1746029438603,-187.96,0.00038356,12]
[359454038,1746029438612,-400.0,0.00038356,12]
[359454039,1746029438622,-1264.97,0.00038356,12]
[359454040,1746029438631,-1264.97,0.00038356,12]
[359454041,1746029438641,-1264.97,0.00038356,12]
[359454042,1746029438651,-400.0,0.00038356,12]
[359454043,1746029438660,-1264.97,0.00038356,12]
[359454044,1746029438670,-1264.97,0.00038356,12]
[359454045,1746029438679,-400.0,0.00038356,12]
[359454046,1746029438689,-1264.97,0.00038356,12]
[359454047,1746029438699,-1264.97,0.00038356,12]
[359454048,1746029438708,-1264.97,0.00038356,12]
[359454049,1746029438718,-1264.97,0.00038356,12]
[359454050,1746029438728,-1264.97,0.00038356,12]
[359454051,1746029438737,-1264.97,0.00038356,12]
[359454052,1746029438747,-400.0,0.00038356,12]
[359454053,1746029438757,-1264.97,0.00038356,12]
[359454054,1746029438766,-401.78743739,0.00038356,5]
[359454055,1746029438776,-1264.97,0.00038356,12]
[359454056,1746029438785,-1264.97,0.00038356,12]
[359454057,1746029438795,-1264.97,0.00038356,12]
[359454058,1746029438804,-1264.97,0.00038356,12]
[359454059,1746029438814,-1264.97,0.00038356,12]
[359454060,1746029438824,-1264.97,0.00038356,12]
[359454061,1746029438833,-400.0,0.00038356,12]
[359454062,1746029438843,-400.0,0.00038356,12]
[359454063,1746029438853,-400.0,0.00038356,12]
[359454064,1746029438864,-257.11350369,0.00038356,12]
[359454065,1746029438875,-400.0,0.00038356,12]
[359454066,1746029438884,-400.0,0.00038356,12]
[359454067,1746029438895,-400.0,0.00038356,12]
[359454068,1746029438904,-400.0,0.00038356,12]
[359454069,1746029438914,-400.0,0.00038356,12]
[359454070,1746029438923,-400.0,0.00038356,12]
[359454071,1746029438932,-400.0,0.00038356,12]
[359454072,1746029438943,-176.36,0.00038356,12]
[359454073,1746029438953,-400.0,0.00038356,12]
[359454074,1746029438963,-400.0,0.00038356,12]
[359454075,1746029438974,-400.0,0.00038356,12]
[359454076,1746029438984,-527.91,0.00038356,12]
[359454077,1746029438994,-400.0,0.00038356,12]
[359454078,1746029439004,-400.0,0.00038356,12]
[359454079,1746029439016,-400.0,0.00038356,12]
[359454080,1746029439025,-400.0,0.00038356,12]
[359454081,1746029439038,-400.0,0.00038356,12]
[359454082,1746029439048,-400.0,0.00038356,12]
[359454083,1746029439058,-400.0,0.00038356,12]
[359454084,1746029439067,-400.0,0.00038356,12]
[359454085,1746029439077,-400.0,0.00038356,12]
[359454086,1746029439088,-250.78,0.00038356,12]
[359454087,1746029439098,-500.0,0.00038356,12]
[359454088,1746029439107,-300.0,0.00038356,12]
[359454089,1746029439117,-400.0,0.00038356,12]
[359454090,1746029439127,-400.0,0.00038356,12]
[359454091,1746029439136,-400.0,0.00038356,12]
[359454092,1746029439145,-400.0,0.00038356,12]
[359454093,1746029439155,-400.0,0.00038356,12]
[359454094,1746029439164,-400.0,0.00038356,12]
[359454095,1746029439174,-525.4538958,0.00038356,12]
[359454096,1746029439183,-400.0,0.00038356,12]
[359454097,1746029439193,-289.23,0.00038356,12]
[359454098,1746029439203,-400.0,0.00038356,12]
[359454099,1746029439212,-411.3777108,0.00038356,12]
[359454100,1746029439222,-400.0,0.00038356,12]
[359454101,1746029439232,-400.0,0.00038356,12]
[359454102,1746029439242,-400.0,0.00038356,12]
[359454103,1746029439252,-400.0,0.00038356,12]
[359454104,1746029439261,-400.0,0.00038356,12]
[359454105,1746029439271,-400.0,0.00038356,12]
[359454106,1746029439282,-400.0,0.00038356,12]
[359454107,1746029439292,-400.0,0.00038356,12]
[359454108,1746029439302,-200.92982532,0.00038356,12]
[359454109,1746029439312,-359.86,0.00038356,12]
[359454110,1746029439322,-400.0,0.00038356,12]
[359454111,1746029439332,-519.57,0.00038356,12]
[359454112,1746029439341,-400.0,0.00038356,12]
[359454113,1746029439350,-400.0,0.00038356,12]
[359454114,1746029439360,-195.32658617,0.00038356,12]
[359454115,1746029439370,-400.0,0.00038356,12]
[359454116,1746029439379,-400.0,0.00038356,12]
[359454117,1746029439389,-400.0,0.00038356,12]
[359454118,1746029439398,-400.0,0.00038356,12]
[359454119,1746029439408,-400.0,0.00038356,12]
[359454120,1746029439417,-400.0,0.00038356,12]
[359454121,1746029439426,-400.0,0.00038356,12]
[359454122,1746029439435,-400.0,0.00038356,12]
[359454123,1746029439445,-400.0,0.00038356,12]
[359454124,1746029439454,-400.0,0.00038356,12]
[359454125,1746029439464,-400.0,0.00038356,12]
[359454126,1746029439474,-400.0,0.00038356,12]
[359454127,1746029439483,-400.0,0.00038356,12]
[359454128,1746029439492,-400.0,0.00038356,12]
[359454129,1746029439502,-400.0,0.00038356,12]
[359454130,1746029439511,-400.0,0.00038356,12]
[359454132,1746029439520,-400.0,0.00038356,12]
[359454133,1746029439530,-400.0,0.00038356,12]
[359454134,1746029439540,-400.0,0.00038356,12]
[359454135,1746029439549,-400.0,0.00038356,12]
[359454136,1746029439559,-400.0,0.00038356,12]
[359454137,1746029439568,-436.75,0.00038356,12]
[359454138,1746029439577,-400.0,0.00038356,12]
[359454139,1746029439587,-400.0,0.00038356,12]
[359454140,1746029439597,-400.0,0.00038356,12]
[359454141,1746029439607,-400.0,0.00038356,12]
[359454142,1746029439617,-400.0,0.00038356,12]
[359454143,1746029439628,-400.0,0.00038356,12]
[359454144,1746029439638,-400.0,0.00038356,12]
[359454145,1746029439648,-400.0,0.00038356,12]
[359454146,1746029439658,-399.87,0.00038356,12]
[359454147,1746029439668,-400.0,0.00038356,12]
[359454148,1746029439678,-400.0,0.00038356,12]
[359454149,1746029439687,-400.0,0.00038356,12]
[359454150,1746029439697,-400.0,0.00038356,12]
[359454152,1746029439706,-400.0,0.00038356,12]
[359454153,1746029439716,-400.0,0.00038356,12]
[359454154,1746029439725,-445.35,0.00038356,12]
[359454155,1746029439734,-400.0,0.00038356,12]
[359454156,1746029439743,-400.0,0.00038356,12]
[359454157,1746029439753,-300.0,0.00038356,12]
[359454158,1746029439762,-400.0,0.00038356,12]
[359454159,1746029439772,-308.84029604,0.00038356,12]
[359454160,1746029439782,-400.0,0.00038356,12]
[359454161,1746029439792,-400.0,0.00038356,12]
[359454162,1746029439801,-400.0,0.00038356,12]
[359454163,1746029439811,-400.0,0.00038356,12]
[359454164,1746029439820,-243.52722894,0.00038356,12]
[359454165,1746029439830,-410.36758078,0.00038356,12]
[359454166,1746029439839,-400.0,0.00038356,12]
[359454167,1746029439848,-400.0,0.00038356,12]
[359454168,1746029439857,-400.0,0.00038356,12]
[359454169,1746029439867,-400.0,0.00038356,12]
[359454170,1746029439876,-400.0,0.00038356,12]
[359454171,1746029439886,-296.49,0.00038356,12]
[359454172,1746029439895,-400.0,0.00038356,12]
[359454173,1746029439905,-400.0,0.00038356,12]
[359454174,1746029439914,-400.0,0.00038356,12]
[359454175,1746029439924,-400.0,0.00038356,12]
[359454176,1746029439933,-400.0,0.00038356,12]
[359454177,1746029439942,-400.0,0.00038356,12]
[359454179,1746029440104,-400.0,0.00038356,12]
[359454180,1746029440115,-434.27,0.00038356,12]
[359454181,1746029440124,-400.0,0.00038356,12]
[359454182,1746029440134,-400.0,0.00038356,12]
[359454183,1746029440143,-325.62,0.00038356,12]
[359454184,1746029440152,-400.0,0.00038356,12]
[359454185,1746029440161,-400.0,0.00038356,12]
[359454186,1746029440170,-400.0,0.00038356,12]
[359454187,1746029440179,-400.9326361,0.00038356,12]
[359454188,1746029440188,-400.0,0.00038356,12]
[359454189,1746029440197,-400.0,0.00038356,12]
[359454190,1746029440206,-400.0,0.00038356,12]
[359454191,1746029440215,-400.0,0.00038356,12]
[359454192,1746029440224,-400.0,0.00038356,12]
[359454193,1746029440234,-387.9,0.00038356,12]
[359454194,1746029440244,-400.0,0.00038356,12]
[359454195,1746029440253,-400.0,0.00038356,12]
[359454196,1746029440262,-281.01549445,0.00038356,12]
[359454197,1746029440271,-400.0,0.00038356,12]
[359454199,1746029440282,-400.0,0.00038356,12]
[359454200,1746029440292,-400.0,0.00038356,12]
[359454201,1746029440301,-400.0,0.00038356,12]
[359454202,1746029440310,-400.0,0.00038356,12]
[359454203,1746029440320,-400.0,0.00038356,12]
[359454204,1746029440329,-400.0,0.00038356,12]
[359454205,1746029440338,-538.81467612,0.00038356,12]
[359454206,1746029440348,-400.0,0.00038356,12]
[359454207,1746029440358,-199.75,0.00038356,12]
[359454208,1746029440367,-400.0,0.00038356,12]
[359454209,1746029440377,-400.0,0.00038356,12]
[359454210,1746029440387,-400.0,0.00038356,12]
[359454211,1746029440396,-532.06,0.00038356,12]
[359454212,1746029440406,-403.73354968,0.00038356,12]
[359454213,1746029440416,-529.91,0.00038356,12]
[359454214,1746029440426,-428.93,0.00038356,12]
[359454215,1746029440436,-400.0,0.00038356,12]
[359454216,1746029440445,-400.0,0.00038356,12]
[359454217,1746029440455,-493.66816483,0.00038356,12]
[359454218,1746029440464,-400.0,0.00038356,12]
[359454219,1746029440474,-319.43265843,0.00038356,12]
[359454220,1746029440484,-400.0,0.00038356,12]
[359454221,1746029440494,-400.0,0.00038356,12]
[359454222,1746029440504,-400.0,0.00038356,12]
[359454223,1746029440515,-442.48366466,0.00038356,12]
[359454224,1746029440525,-400.0,0.00038356,12]
[359454225,1746029440535,-400.0,0.00038356,12]
[359454226,1746029440544,-400.0,0.00038356,12]
[359454227,1746029440554,-400.0,0.00038356,12]
[359454228,1746029440563,-400.0,0.00038356,12]
[359454229,1746029440573,-400.0,0.00038356,12]
[359454230,1746029440582,-400.0,0.00038356,12]
[359454231,1746029440593,-400.0,0.00038356,12]
[359454232,1746029440602,-400.0,0.00038356,12]
[359454233,1746029440612,-400.0,0.00038356,12]
[359454234,1746029440626,-400.0,0.00038356,12]
[359454235,1746029440636,-400.0,0.00038356,12]
[359454236,1746029440645,-400.0,0.00038356,12]
[359454237,1746029440655,-400.0,0.00038356,12]
[359454238,1746029440666,-400.0,0.00038356,12]
[359454239,1746029440676,-400.0,0.00038356,12]
[359454240,1746029440685,-400.0,0.00038356,12]
[359454241,1746029440695,-224.65,0.00038356,12]
[359454242,1746029440705,-400.0,0.00038356,12]
[359454243,1746029440716,-400.0,0.00038356,12]
[359454244,1746029440725,-172.85,0.00038356,12]
[359454245,1746029440735,-400.0,0.00038356,12]
[359454246,1746029440744,-400.0,0.00038356,12]
[359454247,1746029440753,-400.0,0.00038356,12]
[359454248,1746029440763,-467.38,0.00038356,12]
[359454249,1746029440772,-400.0,0.00038356,12]
[359454250,1746029440782,-480.66,0.00038356,12]
[359454251,1746029440791,-400.0,0.00038356,12]
[359454252,1746029440801,-400.0,0.00038356,12]
[359454253,1746029440810,-400.0,0.00038356,12]
[359454254,1746029440819,-400.0,0.00038356,12]
[359454255,1746029440829,-400.0,0.00038356,12]
[359454256,1746029440838,-400.0,0.00038356,12]
[359454257,1746029440847,-400.0,0.00038356,12]
[359454258,1746029440856,-400.0,0.00038356,12]
[359454259,1746029440865,-400.0,0.00038356,12]
[359454260,1746029440875,-400.0,0.00038356,12]
[359454261,1746029440884,-400.0,0.00038356,12]
[359454262,1746029440893,-400.0,0.00038356,12]
[359454263,1746029440903,-4294.3,0.00038371,12]
[359454264,1746029440913,-400.0,0.00038372,12]
[359454265,1746029440923,-428.45,0.00038372,12]
[359454266,1746029440932,-400.0,0.00038372,12]
[359454267,1746029440942,-400.0,0.00038372,12]
[359454268,1746029440951,-1264.97,0.00038372,12]
[359454269,1746029440960,-500.0,0.00038373,5]
[359454270,1746029440970,-504.34832092,0.00038373,5]
[359454271,1746029440980,-500.0,0.00038373,5]
[359454272,1746029440989,-500.0,0.00038373,5]
[359454273,1746029440999,-500.0,0.00038373,5]
[359454274,1746029441010,-300.0,0.00038373,5]
[359454275,1746029441022,-500.0,0.00038373,5]
[359454276,1746029441033,-500.0,0.00038373,5]
[359454277,1746029441043,-500.0,0.00038373,2]
[359454278,1746029441052,-500.0,0.00038373,5]
[359454279,1746029441062,-500.0,0.00038373,5]
[359454280,1746029441074,-500.0,0.00038373,5]
[359454281,1746029441084,-500.0,0.00038373,5]
[359454282,1746029441093,-500.0,0.00038373,5]
[359454283,1746029441103,-500.0,0.00038436,7]
[359454284,1746029441114,-712.5,0.00038599,12]
[359454285,1746029441124,-500.0,0.00038599,12]
[359454286,1746029441134,-517.84,0.000386,2]
[359454287,1746029441144,-182.64251736,0.00038667,2]
[359454288,1746029441154,-413.97643227,0.00038745,2]
[359454289,1746029441163,-500.0,0.00038748,7]
[359454290,1746029441174,-497.992894,0.00038933,2]
[359454291,1746029441184,-10988.3818257,0.0003897,3]
[359454292,1746029441194,-500.65908257,0.00038973,5]
[359454293,1746029441204,-500.0,0.00038973,5]
[359454294,1746029441214,-500.0,0.00038973,5]
[359454295,1746029441225,-150.0,0.00038973,5]
[359454296,1746029441235,-500.0,0.00038973,5]
[359454297,1746029441245,-500.0,0.00038973,5]
[359454298,1746029441255,-621.40500192,0.00038973,5]
[359454299,1746029441265,-500.0,0.00038973,5]
[359454300,1746029441275,-500.0,0.00038973,5]
[359454301,1746029441285,-617.47552824,0.00038978,2]
[359454302,1746029441295,-1264.97,0.0003898,12]
[359454303,1746029441304,-1264.97,0.0003898,12]
[359454304,1746029441315,-1264.97,0.0003898,12]
[359454305,1746029441325,-1264.97,0.0003898,12]
[359454306,1746029441335,-1265.19608036,0.0003898,12]
[359454307,1746029441345,-21976.7636514,0.0003898,3]
[359454308,1746029441354,-400.0,0.00038989,12]
[359454309,1746029441364,-542.05,0.00038989,12]
[359454310,1746029441374,-428.45,0.00038989,12]
[359454311,1746029441384,-428.45,0.00038989,12]
[359454312,1746029441394,-428.45,0.00038989,12]
[359454313,1746029441403,-428.45,0.00038989,12]
[359454314,1746029441413,-428.45,0.00038989,12]
[359454315,1746029441423,-400.0,0.00038989,12]
[359454316,1746029441433,-400.0,0.00038989,12]
[359454317,1746029441444,-400.0,0.00038989,12]
[359454318,1746029441455,-400.0,0.00038989,12]
[359454319,1746029441466,-400.0,0.00038989,12]
[359454320,1746029441476,-400.0,0.00038989,12]
[359454321,1746029441486,-400.0,0.00038989,12]
[359454322,1746029441495,-400.0,0.00038989,12]
[359454323,1746029441505,-400.0,0.00038989,12]
[359454324,1746029441514,-400.0,0.00038989,12]
[359454325,1746029441524,-100000.0,0.0003899,2]
[359454326,1746029441534,-200.0,0.00039,30]
[359454327,1746029441544,-500.0,0.00039,120]
[359454328,1746029441554,-200.0,0.00039006,120]
[359454329,1746029441563,-182.64251736,0.00039078,2]
[359454330,1746029441572,-200.0,0.000391,30]
[359454331,1746029441583,-200.0,0.0003911,120]
[359454332,1746029441594,-200.0,0.000392,30]
[359454333,1746029441604,-413.97643227,0.00039215,2]
[359454334,1746029441614,-1000.0,0.0003926,60]
[359454335,1746029441624,-200.0,0.000393,30]
[359454336,1746029441634,-200.0,0.000394,30]
[359454337,1746029441643,-182.64251736,0.00039489,2]
[359454338,1746029441654,-560.0,0.00039554,5]
[359454339,1746029441664,-293.85068442,0.00039557,7]
[359454340,1746029441673,-11789.38301736,0.000396,2]
[359454341,1746029441683,-200.0,0.00039666,120]
[359454342,1746029441693,-413.97643227,0.00039685,2]
[359454343,1746029441702,-500.0,0.00039726,120]
[359454344,1746029441714,-500.0,0.00039726,120]
[359454345,1746029441724,-4050.11990235,0.00039765,2]
[359454346,1746029441733,-10988.3818257,0.00039776,3]
[359454347,1746029441743,-503.48035962,0.0003978,30]
[359454348,1746029441752,-4294.3,0.00039795,12]
[359454349,1746029441760,-428.45,0.00039795,12]
[359454350,1746029441768,-251.54,0.00039795,12]
[359454351,1746029441777,-400.0,0.00039795,12]
[359454352,1746029441787,-19047.76682234,0.00039796,2]
[359454353,1746029441796,-712.5,0.00039889,12]
[359454354,1746029441805,-500.0,0.00039889,12]
[359454355,1746029441815,-182.64251736,0.000399,2]
[359454356,1746029441824,-10988.3818257,0.0003997,3]
[359454357,1746029441834,-428.45,0.00039972,12]
[359454358,1746029441843,-400.0,0.00039972,12]
[359454359,1746029441853,-500.0,0.00039973,5]
[359454360,1746029441864,-502.12134361,0.00039973,5]
[359454361,1746029441874,-10988.3818257,0.0003998,3]
[359454362,1746029441883,-4294.3,0.00039988,12]
[359454363,1746029441893,-10988.3818257,0.00039989,3]
[359454364,1746029441905,-712.5,0.00039989,12]
[359454365,1746029441915,-500.0,0.00039989,12]
[359454366,1746029441925,-32965.1454771,0.0003999,3]
[359454367,1746029441935,-428.45,0.00039999,12]
[359454368,1746029441946,-428.45,0.00039999,12]
[359454369,1746029441956,-428.45,0.00039999,12]
[359454370,1746029441966,-428.45,0.00039999,12]
[359454371,1746029441986,-428.45,0.00039999,12]
[359454372,1746029441998,-428.57,0.00039999,12]
[359454373,1746029442012,-400.0,0.00039999,12]
[359454374,1746029442022,-400.0,0.00039999,12]
[359454375,1746029442035,-400.0,0.00039999,12]
[359454376,1746029442045,-400.0,0.00039999,12]
[359454377,1746029442058,-363.88,0.00039999,12]
[359454378,1746029442068,-6000.0,0.0004,2]
[359454379,1746029442080,-274983.85514254,0.0004,60]
[359454380,1746029442188,-400.0,0.00038356,12]
[359454381,1746029442198,-400.0,0.00038356,12]
[359454382,1746029442208,-400.0,0.00038356,12]
[359454383,1746029442218,-400.0,0.00038356,12]
[359454384,1746029442228,-400.0,0.00038356,12]
[359454385,1746029442238,-209.84869464,0.00038356,12]
[359454386,1746029442247,-400.0,0.00038356,12]
[359454387,1746029442258,-272.78,0.00038356,12]
[359454388,1746029442268,-400.0,0.00038356,12]
[359454389,1746029442280,-400.0,0.00038356,12]
[359454390,1746029442290,-400.0,0.00038356,12]
[359454391,1746029442300,-400.0,0.00038356,12]
[359454392,1746029442309,-400.0,0.00038356,12]
[359454393,1746029442319,-400.0,0.00038356,12]
[359454394,1746029442329,-286.31,0.00038356,12]
[359454395,1746029442340,-73016.14485746,0.0004,60]
[359454396,1746029442349,-500.0,0.0004,120]
[359454397,1746029442359,-500.0,0.0004,120]
[359454398,1746029442369,-3739.11,0.0004,120]
[359454399,1746029442378,-163.567,0.0004,120]
[359454400,1746029442388,-4905.0,0.0004,20]
[359454401,1746029442398,-600.0,0.00040016,5]
[359454402,1746029442408,-2896.27650988,0.0004006,2]
[359454403,1746029442418,-160.0,0.00040068,2]
[359454404,1746029442427,-413.97643227,0.00040155,28]
[359454405,1746029442437,-712.5,0.00040167,12]
[359454406,1746029442446,-500.0,0.00040167,12]
[359454407,1746029442457,-712.5,0.00040172,12]
[359454408,1746029442467,-500.0,0.00040172,12]
[359454409,1746029442477,-4294.3,0.00040175,12]
[359454410,1746029442488,-788.77178456,0.00040177,31]
[359454411,1746029442497,-800.0,0.00040177,6]